bitfinex-derivatives/quotes_BTCF0:USTF0_20240917
["timestamp","ask_amount","ask_price","bid_price","bid_amount"]
[1726540818933,0.22683163,58050.0,58049.0,1.395429]
[1726540819229,0.32188076,58050.0,58049.0,0.795429]
[1726540821639,0.13290648,58050.0,58049.0,0.795429]
[1726540822029,0.32188076,58050.0,58049.0,1.395429]
[1726540822338,0.13290648,58050.0,58049.0,1.395429]
[1726540822542,0.13290648,58050.0,58049.0,0.795429]
[1726540822733,0.00458431,58050.0,58049.0,0.795429]
[1726540825935,0.00458431,58050.0,58049.0,0.735329]
[1726540826137,0.00458431,58050.0,58049.0,0.218529]
[1726540829639,0.00458431,58050.0,58049.0,0.735329]
[1726540829841,0.03785634,58050.0,58049.0,0.735329]
[1726540830036,0.03785634,58050.0,58049.0,0.218529]
[1726540830332,0.22683062,58050.0,58049.0,0.735329]
[1726540830534,0.32188086,58050.0,58049.0,0.218529]
[1726540830740,0.32188086,58050.0,58049.0,0.735329]
[1726540830939,0.32188086,58050.0,58049.0,0.218529]
[1726540831139,0.13290658,58050.0,58049.0,0.218529]
[1726540831340,0.13032227,58050.0,58049.0,0.735329]
[1726540831535,0.17378072,58050.0,58049.0,0.735329]
[1726540832039,0.002,58050.0,58049.0,1.335329]
[1726540832246,0.13032227,58050.0,58049.0,1.335329]
[1726540835742,0.13031331,58050.0,58049.0,1.335329]
[1726540836444,0.31928759,58050.0,58049.0,1.335329]
[1726540837841,0.19097428,58050.0,58049.0,1.335329]
[1726540839446,0.19097428,58050.0,58049.0,1.54367134]
[1726540840439,0.19097428,58050.0,58049.0,1.45796179]
[1726540841550,0.002,58050.0,58049.0,1.45796179]
[1726540842348,0.002,58050.0,58049.0,0.85796179]
[1726540842547,0.002,58050.0,58049.0,1.45796179]
[1726540843253,0.002,58050.0,58049.0,1.45796726]
[1726540846346,0.002,58050.0,58049.0,0.85796726]
[1726540846548,1e-06,58064.0,58050.0,0.51676]
[1726540846743,1e-08,58064.0,58063.0,1.024618]
[1726540846944,0.3608,58082.0,58081.0,0.086082]
[1726540847144,0.058,58083.0,58082.0,0.08608]
[1726540847372,0.1147,58084.0,58082.0,0.13726862]
[1726540847652,0.1147,58084.0,58083.0,0.1308]
[1726540847957,0.1147,58084.0,58083.0,0.13]
[1726540848147,0.0575,58084.0,58083.0,0.13]
[1726540848457,0.3608,58089.0,58087.0,0.086073]
[1726540848655,0.3608,58089.0,58088.0,0.0008]
[1726540848866,0.0572,58090.0,58089.0,0.08607]
[1726540849047,0.0572,58090.0,58089.0,0.08687]
[1726540850361,0.0572,58090.0,58089.0,0.08787]
[1726540850555,0.0572,58090.0,58089.0,0.0018]
[1726540850955,0.0572,58090.0,58086.0,0.3608]
[1726540851258,0.058,58090.0,58086.0,0.3608]
[1726540851559,0.058,58090.0,58089.0,0.001]
[1726540852157,0.058,58090.0,58086.0,0.36168]
[1726540852363,0.058,58090.0,58088.0,0.2]
[1726540853060,0.18996563,58089.0,58088.0,0.09659519]
[1726540853959,0.18996563,58089.0,58086.0,0.18379428]
[1726540854168,0.058,58090.0,58089.0,0.08607]
[1726540854366,0.24796332,58090.0,58089.0,0.08647]
[1726540854667,0.24796332,58090.0,58089.0,0.08747]
[1726540855058,0.35108427,58090.0,58089.0,0.08747]
[1726540855554,0.12902968,58090.0,58089.0,0.08747]
[1726540855856,0.12902968,58090.0,58089.0,1.20391]
[1726540856368,0.13001515,58090.0,58089.0,1.20491]
[1726540856665,0.34005459,58102.0,58089.0,1.20491]
[1726540856861,0.34005459,58102.0,58101.0,0.0008]
[1726540857067,0.118,58102.0,58101.0,0.0008]
[1726540857563,0.22205459,58105.0,58104.0,0.086048]
[1726540857766,0.22205459,58105.0,58104.0,0.447648]
[1726540858063,0.00258191,58109.0,58104.0,0.3616]
[1726540858267,0.46187189,58113.0,58111.0,0.086037]
[1726540858268,0.46283189,58113.0,58111.0,0.086037]
[1726540858561,0.1781,58113.0,58112.0,0.2008]
[1726540858761,0.23981215,58113.0,58112.0,0.2]
[1726540859467,0.1791,58113.0,58112.0,0.2]
[1726540860657,0.265134,58113.0,58112.0,0.2]
[1726540860853,0.1791,58113.0,58111.0,0.001]
[1726540861060,0.265134,58113.0,58112.0,0.001]
[1726540861863,0.086036,58112.0,58111.0,0.001]
[1726540862067,0.086036,58112.0,58111.0,0.002]
[1726540862471,0.086036,58112.0,58111.0,0.001]
[1726540863066,0.1791,58113.0,58108.0,0.0008]
[1726540863067,0.08604,58109.0,58108.0,0.0008]
[1726540864372,0.08704,58109.0,58108.0,0.0018]
[1726540864766,0.08704,58109.0,58108.0,0.0028]
[1726540868079,0.086043,58107.0,58106.0,0.02678097]
[1726540868268,0.17289535,58107.0,58106.0,0.02678097]
[1726540868474,0.21503163,58107.0,58106.0,0.02678097]
[1726540868676,0.30729835,58107.0,58106.0,0.02678097]
[1726540868968,0.36011332,58107.0,58106.0,0.02678097]
[1726540869172,0.18279425,58107.0,58106.0,0.02778097]
[1726540869567,0.37001222,58107.0,58106.0,0.02778097]
[1726540869975,0.37001179,58107.0,58106.0,0.02778097]
[1726540870968,0.37201179,58107.0,58106.0,0.02878097]
[1726540871176,0.086045,58106.0,58105.0,0.00258144]
[1726540871381,0.086057,58098.0,58095.0,0.08864198]
[1726540871680,0.18748434,58096.0,58095.0,0.28864198]
[1726540872068,0.09495082,58096.0,58095.0,0.28864198]
[1726540872275,0.04213609,58096.0,58095.0,0.28864198]
[1726540872686,0.17858966,58096.0,58095.0,0.28864198]
[1726540872879,0.18058966,58096.0,58095.0,0.28964198]
[1726540873274,0.04413609,58096.0,58095.0,0.28964198]
[1726540874487,0.04713609,58096.0,58095.0,0.28964198]
[1726540874683,0.04713609,58096.0,58095.0,0.80604198]
[1726540875088,0.006,58096.0,58095.0,0.80704198]
[1726540875285,0.006,58096.0,58095.0,0.85822319]
[1726540876084,0.002,58096.0,58095.0,0.85722319]
[1726540876388,0.006,58096.0,58095.0,0.80604198]
[1726540876588,0.007,58096.0,58095.0,0.80604198]
[1726540876889,0.007,58096.0,58095.0,0.28964198]
[1726540877090,0.004,58096.0,58095.0,0.34534198]
[1726540877293,0.00017275,58096.0,58095.0,0.93114097]
[1726540877482,0.00017275,58096.0,58095.0,1.53114097]
[1726540877682,0.00317275,58096.0,58095.0,1.53214097]
[1726540877885,0.00317275,58096.0,58095.0,1.65350182]
[1726540878185,0.00317275,58096.0,58095.0,1.73956282]
[1726540878387,0.3608,58102.0,58101.0,0.086052]
[1726540878688,0.3608,58102.0,58101.0,0.803172]
[1726540879993,0.3608,58102.0,58101.0,0.287852]
[1726540880781,0.3608,58102.0,58101.0,0.804172]
[1726540880984,0.3608,58102.0,58101.0,0.805172]
[1726540881494,0.3231,58110.0,58101.0,0.805172]
[1726540881495,0.004,58111.0,58106.0,0.086045]
[1726540881696,0.00258102,58123.0,58122.0,0.086021]
[1726540881881,0.00258102,58123.0,58122.0,0.286021]
[1726540882087,0.00258102,58123.0,58122.0,1.45324349]
[1726540882389,0.00258102,58123.0,58122.0,1.45320725]
[1726540882583,0.00258102,58123.0,58122.0,1.63531082]
[1726540882825,0.3608,58126.0,58122.0,0.13704725]
[1726540882986,0.2,58125.0,58120.0,0.05102625]
[1726540883198,0.5608,58121.0,58119.0,0.0025807]
[1726540883692,0.086036,58113.0,58110.0,0.0048]
[1726540883887,1.1608,58121.0,58110.0,0.0008]
[1726540883888,0.2,58114.0,58110.0,0.0008]
[1726540884089,0.147437,58112.0,58110.0,0.0008]
[1726540885089,0.147437,58112.0,58110.0,0.0018]
[1726540885494,0.147437,58112.0,58110.0,0.0028]
[1726540885887,0.147437,58112.0,58110.0,0.0018]
[1726540886090,0.147437,58112.0,58110.0,0.0028]
[1726540889392,0.0614,58112.0,58110.0,0.0028]
[1726540889594,0.0614,58112.0,58111.0,0.086037]
[1726540890691,0.0614,58112.0,58111.0,0.087037]
[1726540892108,0.0614,58112.0,58111.0,0.088037]
[1726540895303,0.11961703,58114.0,58113.0,0.086034]
[1726540895503,0.04213222,58115.0,58114.0,0.086033]
[1726540896609,0.04213222,58115.0,58114.0,0.087033]
[1726540898204,0.49846517,58116.0,58114.0,0.087033]
[1726540898205,0.36176,58116.0,58115.0,0.086032]
[1726540898406,0.3608,58116.0,58115.0,0.29626364]
[1726540898716,0.3608,58116.0,58115.0,0.29706364]
[1726540899413,0.3608,58116.0,58115.0,0.086832]
[1726540899819,0.3608,58116.0,58115.0,0.087832]
[1726540900110,0.3608,58116.0,58115.0,0.088832]
[1726540901811,0.44683,58116.0,58115.0,0.088832]
[1726540902212,0.44683,58116.0,58115.0,0.0028]
[1726540903499,0.44683,58116.0,58115.0,0.05388771]
[1726540905313,0.62566884,58116.0,58115.0,0.0028]
[1726540905711,0.48896367,58116.0,58115.0,0.0028]
[1726540906506,0.62566884,58116.0,58115.0,0.0028]
[1726540907512,0.48896367,58116.0,58115.0,0.0028]
[1726540908909,0.48896346,58116.0,58115.0,0.0028]
[1726540911121,0.04213026,58116.0,58115.0,1.6798]
[1726540911423,0.03322953,58116.0,58115.0,1.6798]
[1726540911614,0.12032591,58121.0,58115.0,1.6798]
[1726540911809,0.12032591,58121.0,58120.0,0.2008]
[1726540912119,0.15355521,58121.0,58120.0,0.2008]
[1726540912512,0.0332293,58121.0,58120.0,0.286824]
[1726540912711,0.13752785,58124.0,58123.0,0.08602]
[1726540912912,0.00258084,58125.0,58123.0,0.08602]
[1726540912913,0.00258084,58125.0,58124.0,0.086018]
[1726540913112,0.00258084,58125.0,58124.0,0.086818]
[1726540913313,0.00258084,58125.0,58124.0,0.086018]
[1726540914413,0.00258084,58125.0,58124.0,0.087018]
[1726540914821,0.00258084,58125.0,58124.0,0.088018]
[1726540915220,0.00258084,58125.0,58124.0,0.29799194]
[1726540915415,0.00258084,58125.0,58124.0,0.088018]
[1726540915918,0.00258084,58125.0,58124.0,0.41273351]
[1726540916909,0.3608,58127.0,58126.0,0.086015]
[1726540917114,0.3608,58127.0,58126.0,0.29672154]
[1726540917321,0.3608,58127.0,58126.0,0.17200603]
[1726540917517,0.3608,58127.0,58126.0,0.086815]
[1726540918112,0.3608,58127.0,58126.0,0.088815]
[1726540918513,0.3608,58127.0,58126.0,0.156949]
[1726540918917,0.3608,58127.0,58126.0,0.088815]
[1726540920020,0.3608,58127.0,58126.0,0.156949]
[1726540920221,0.57496919,58127.0,58126.0,0.088815]
[1726540920814,0.7283681,58127.0,58126.0,0.088815]
[1726540921109,0.57496867,58127.0,58126.0,0.088815]
[1726540921920,0.52216769,58127.0,58126.0,0.088815]
[1726540922922,0.74654087,58127.0,58126.0,0.088815]
[1726540923315,0.66052687,58127.0,58126.0,0.088815]
[1726540927224,0.31776364,58127.0,58126.0,0.13989935]
[1726540927528,0.40377764,58127.0,58126.0,0.13989935]
[1726540928217,0.40377764,58127.0,58126.0,0.05388435]
[1726540928416,0.40377764,58127.0,58126.0,0.0028]
[1726540929624,0.31776364,58127.0,58126.0,0.13989935]
[1726540929923,0.31776364,58127.0,58126.0,0.05388435]
[1726540929924,1.80591164,58127.0,58126.0,0.05388435]
[1726540930126,1.71989764,58127.0,58118.0,0.004]
[1726540930325,0.086027,58118.0,58116.0,0.004]
[1726540930627,0.086027,58118.0,58112.0,0.086035]
[1726540930815,0.143327,58118.0,58112.0,0.086035]
[1726540931227,0.143327,58118.0,58113.0,0.086034]
[1726540931228,0.144927,58118.0,58113.0,0.086034]
[1726540931825,0.144927,58118.0,58110.0,0.17523003]
[1726540932229,0.144927,58118.0,58117.0,0.00358077]
[1726540933222,0.144927,58118.0,58117.0,0.00458077]
[1726540935921,0.32176364,58127.0,58117.0,0.00458077]
[1726540936126,0.31776364,58127.0,58126.0,0.0008]
[1726540936328,0.31776364,58127.0,58126.0,0.086815]
[1726540937327,0.31876364,58127.0,58126.0,0.087815]
[1726540938127,0.001,58127.0,58126.0,0.087815]
[1726540938427,0.001,58127.0,58126.0,0.603935]
[1726540939039,0.001,58127.0,58126.0,0.087815]
[1726540939740,0.001,58127.0,58126.0,0.088815]
[1726540941236,0.001,58127.0,58126.0,0.09832242]
[1726540943047,0.07635008,58127.0,58126.0,0.09832242]
[1726540945431,0.1383537,58127.0,58126.0,0.09832242]
[1726540945639,0.21370378,58127.0,58126.0,0.09832242]
[1726540947143,0.21370378,58127.0,58126.0,0.18433742]
[1726540947647,0.07635008,58127.0,58126.0,0.18433742]
[1726540947940,0.07635008,58127.0,58126.0,0.09832242]
[1726540948146,0.07635008,58127.0,58126.0,0.088815]
[1726540948344,0.21370378,58127.0,58126.0,0.088815]
[1726540949742,0.21370378,58127.0,58126.0,0.27411573]
[1726540949939,0.07635008,58127.0,58126.0,0.27411573]
[1726540950138,0.07635008,58127.0,58126.0,0.088815]
[1726540950338,0.1373537,58128.0,58127.0,0.086014]
[1726540950546,0.1373537,58128.0,58127.0,0.086814]
[1726540951546,0.1383537,58128.0,58127.0,0.087814]
[1726540952547,0.1383537,58128.0,58127.0,0.088814]
[1726540953148,0.001,58128.0,58127.0,0.088814]
[1726540956942,0.004,58136.0,58127.0,1.86790933]
[1726540957144,0.0565,58137.0,58136.0,0.086]
[1726540957345,0.13184192,58137.0,58136.0,0.0868]
[1726540957557,0.13184192,58137.0,58136.0,0.086]
[1726540958246,0.13184192,58137.0,58136.0,0.087]
[1726540959447,0.13183988,58137.0,58136.0,0.087]
[1726540959657,0.13183988,58137.0,58136.0,0.088]
[1726540961149,0.20980213,58137.0,58136.0,0.088]
[1726540961351,0.08972248,58137.0,58136.0,0.088]
[1726540961551,0.20981771,58137.0,58136.0,0.088]
[1726540962352,0.13184006,58137.0,58136.0,0.088]
[1726540965358,0.0565,58137.0,58136.0,0.088]
[1726540968047,0.0565,58137.0,58136.0,0.002]
[1726540968048,0.142499,58137.0,58136.0,0.002]
[1726540978259,0.3608,58139.0,58136.0,0.002]
[1726540978459,0.3608,58139.0,58138.0,0.086797]
[1726540979963,0.3608,58139.0,58138.0,0.216797]
[1726540980466,0.48892605,58139.0,58138.0,0.217797]
[1726540980665,0.48892605,58139.0,58138.0,0.218797]
[1726540981964,0.48892605,58139.0,58138.0,0.088797]
[1726540982262,0.55060825,58139.0,58138.0,0.088797]
[1726540983261,0.4889245,58139.0,58138.0,0.088797]
[1726540983870,0.6780362,58139.0,58138.0,0.088797]
[1726540984068,0.3172362,58139.0,58138.0,0.088797]
[1726540984771,0.1281245,58139.0,58138.0,0.088797]
[1726540987071,0.09532138,58142.0,58139.0,0.085995]
[1726540987072,0.05278903,58141.0,58139.0,0.085995]
[1726540987266,0.12812562,58140.0,58139.0,0.085995]
[1726540987466,0.09532138,58142.0,58139.0,0.085995]
[1726540987679,0.09532138,58142.0,58141.0,0.0008]
[1726540989576,0.09532138,58142.0,58141.0,0.0018]
[1726540990075,0.09532138,58142.0,58141.0,0.0028]
[1726540993064,0.09532138,58142.0,58141.0,0.088793]
[1726540994173,0.09532138,58142.0,58141.0,0.0028]
[1726540994371,1.21132138,58142.0,58141.0,0.0028]
[1726540994571,0.09532138,58142.0,58141.0,0.0028]
[1726540994878,1.21132138,58142.0,58141.0,0.0028]
[1726540995074,0.09532138,58142.0,58141.0,0.0028]
[1726540995476,0.17065947,58142.0,58141.0,0.0028]
[1726540995676,0.22344952,58142.0,58141.0,0.0028]
[1726540996075,0.58424952,58142.0,58141.0,0.0028]
[1726540996269,0.64593428,58142.0,58141.0,0.0028]
[1726540996678,0.64593285,58142.0,58141.0,0.0028]
[1726540996873,0.58424809,58142.0,58141.0,0.0028]
[1726540997070,0.83502084,58142.0,58141.0,0.2028]
[1726540997784,0.12734527,58142.0,58141.0,1.765593]
[1726540997975,0.07533725,58142.0,58141.0,1.765593]
[1726540998175,0.20500091,58142.0,58141.0,1.165593]
[1726540998478,0.24711684,58142.0,58141.0,1.165593]
[1726540998674,0.24711684,58142.0,58141.0,1.251586]
[1726540998875,0.07533725,58142.0,58141.0,1.251586]
[1726540999070,0.07533725,58142.0,58141.0,1.2607391]
[1726540999071,0.24711684,58142.0,58141.0,1.2607391]
[1726540999276,0.24711684,58142.0,58141.0,1.8607391]
[1726540999472,0.07533725,58142.0,58141.0,1.8607391]
[1726540999879,0.07533725,58142.0,58141.0,1.6607391]
[1726541000181,0.07533725,58142.0,58141.0,1.7747461]
[1726541000884,0.07533725,58142.0,58141.0,0.6587461]
[1726541002381,0.17177959,58143.0,58142.0,0.085992]
[1726541002586,0.17177959,58143.0,58142.0,0.086792]
[1726541003684,0.17177959,58143.0,58142.0,0.087792]
[1726541003984,0.004,58150.0,58149.0,0.085981]
[1726541004188,0.00257958,58151.0,58150.0,0.08598]
[1726541004376,0.00257958,58151.0,58150.0,0.08678]
[1726541004578,0.00257958,58151.0,58150.0,0.08598]
[1726541004783,0.00257958,58151.0,58149.0,0.0008]
[1726541005286,0.00257958,58151.0,58149.0,0.0018]
[1726541005678,0.08598,58150.0,58149.0,0.0018]
[1726541005878,0.08598,58150.0,58149.0,0.0008]
[1726541006079,0.08598,58150.0,58149.0,0.0018]
[1726541006591,0.08598,58150.0,58149.0,0.0028]
[1726541007983,0.08598,58150.0,58149.0,0.0018]
[1726541008187,0.08598,58150.0,58149.0,0.0028]
[1726541008787,0.21598,58150.0,58149.0,0.0028]
[1726541008984,1.41788,58150.0,58149.0,0.0028]
[1726541010494,1.60766252,58150.0,58149.0,0.00184706]
[1726541010687,1.60846252,58150.0,58149.0,0.00184706]
[1726541012688,0.36254252,58150.0,58149.0,0.00184706]
[1726541012992,0.30086764,58150.0,58149.0,0.00184706]
[1726541014690,0.38657373,58150.0,58149.0,0.00184706]
[1726541014885,0.21488764,58150.0,58149.0,0.00184706]
[1726541017384,0.2756347,58150.0,58149.0,0.00184706]
[1726541017586,0.08678,58150.0,58149.0,0.00184706]
[1726541019498,0.08678,58150.0,58149.0,0.08782806]
[1726541019499,0.0008,58150.0,58149.0,0.08782806]
[1726541019699,0.0008,58150.0,58149.0,0.21442806]
[1726541022004,0.0008,58150.0,58149.0,0.30040906]
[1726541022905,0.0008,58150.0,58149.0,1.41632906]
[1726541023203,0.0008,58150.0,58149.0,1.61352705]
[1726541024699,0.0008,58150.0,58149.0,1.61252705]
[1726541024905,0.0008,58150.0,58149.0,1.61352705]
[1726541025099,0.004,58160.0,58159.0,0.085966]
[1726541025299,0.3608,58162.0,58161.0,0.085963]
[1726541025497,0.3608,58162.0,58161.0,0.086763]
[1726541027107,0.3608,58162.0,58161.0,0.087763]
[1726541028007,0.3608,58162.0,58161.0,0.088763]
[1726541032609,0.48887104,58162.0,58159.0,0.03970994]
[1726541032809,0.1897283,58161.0,58160.0,0.085965]
[1726541033109,0.12807104,58161.0,58160.0,0.085965]
[1726541034506,0.12807104,58161.0,58160.0,0.086965]
[1726541034704,0.12807104,58161.0,58160.0,0.217965]
[1726541034904,0.1897283,58161.0,58160.0,0.217965]
[1726541037814,0.12807104,58161.0,58160.0,0.217965]
[1726541038707,0.1897283,58161.0,58160.0,0.217965]
[1726541040009,0.18972832,58161.0,58160.0,0.217965]
[1726541040404,0.27569132,58161.0,58160.0,0.002]
[1726541040609,0.27569132,58161.0,58156.0,0.44934923]
[1726541040610,0.085969,58157.0,58156.0,0.08685]
[1726541040810,0.085969,58157.0,58156.0,0.08597]
[1726541042810,0.085969,58157.0,58156.0,0.08697]
[1726541043715,0.086969,58157.0,58156.0,0.08797]
[1726541047014,0.001,58157.0,58156.0,0.08797]
[1726541047606,0.03420798,58157.0,58156.0,0.08797]
[1726541047814,0.07630699,58157.0,58156.0,0.08797]
[1726541048009,0.001,58157.0,58156.0,0.08797]
[1726541048324,0.03420798,58157.0,58156.0,0.08797]
[1726541048515,0.12907524,58157.0,58156.0,0.08797]
[1726541049324,0.31761928,58157.0,58156.0,0.08797]
[1726541051419,0.12907524,58157.0,58156.0,0.08797]
[1726541052823,0.08697609,58157.0,58156.0,0.08797]
[1726541053017,0.07630686,58157.0,58156.0,0.08797]
[1726541053330,0.22336349,58157.0,58156.0,0.08797]
[1726541053527,0.12907503,58157.0,58156.0,0.08797]
[1726541055630,0.001,58157.0,58156.0,0.08797]
[1726541058226,0.001,58157.0,58156.0,0.27669381]
[1726541058534,0.001,58157.0,58156.0,0.80856722]
[1726541058721,0.0008,58162.0,58161.0,0.085963]
[1726541058937,0.0008,58162.0,58161.0,0.28451354]
[1726541060031,0.0008,58162.0,58161.0,0.28551354]
[1726541060225,0.0008,58162.0,58161.0,0.217363]
[1726541060633,0.0008,58162.0,58161.0,0.303326]
[1726541060835,0.0008,58162.0,58161.0,2.17683288]
[1726541061332,0.0008,58162.0,58161.0,2.17783288]
[1726541062522,0.0008,58162.0,58161.0,1.88531805]
[1726541062730,0.07609312,58162.0,58161.0,0.58857417]
[1726541063928,0.12885165,58162.0,58161.0,0.58857417]
[1726541065732,0.12885165,58162.0,58161.0,0.22777417]
[1726541067237,0.12886113,58162.0,58161.0,0.22777417]
[1726541067536,0.12886113,58162.0,58161.0,0.4144813]
[1726541068737,0.12886113,58162.0,58161.0,1.5302813]
[1726541068923,0.12886113,58162.0,58161.0,1.6162443]
[1726541069337,0.31765767,58162.0,58161.0,1.6162443]
[1726541070731,0.0008,58162.0,58161.0,1.82472661]
[1726541071848,0.0008,58162.0,58161.0,0.5004443]
[1726541073634,0.0008,58162.0,58161.0,1.6162443]
[1726541074944,0.0008,58162.0,58161.0,1.82469792]
[1726541076447,0.0008,58162.0,58161.0,1.82463249]
[1726541076838,0.08852291,58175.0,58171.0,0.085949]
[1726541077039,0.08852291,58175.0,58171.0,0.1308]
[1726541077239,0.08852291,58175.0,58173.0,0.0008]
[1726541077438,0.08852291,58175.0,58171.0,0.178]
[1726541077639,0.08852291,58175.0,58173.0,0.085946]
[1726541077948,0.00257891,58175.0,58173.0,0.085946]
[1726541079343,0.00257891,58175.0,58173.0,0.086946]
[1726541079947,0.00257891,58175.0,58173.0,0.087946]
[1726541083649,0.00257891,58175.0,58174.0,0.085944]
[1726541083853,0.00257891,58175.0,58174.0,0.086744]
[1726541084756,0.00257891,58175.0,58174.0,0.087744]
[1726541085250,0.00257891,58175.0,58174.0,0.088744]
[1726541085654,0.08852191,58175.0,58174.0,0.12596943]
[1726541085847,1.56500191,58175.0,58174.0,0.0028]
[1726541086157,0.44932191,58175.0,58174.0,0.1328]
[1726541088846,0.171892,58173.0,58172.0,0.08503896]
[1726541089051,0.171892,58173.0,58171.0,0.0472]
[1726541089052,0.085947,58172.0,58171.0,0.0472]
[1726541089251,1.201667,58172.0,58171.0,0.0472]
[1726541089447,0.085947,58172.0,58171.0,0.0472]
[1726541089652,1.201667,58172.0,58171.0,0.0472]
[1726541089952,0.085947,58172.0,58171.0,0.0472]
[1726541090154,0.085947,58172.0,58171.0,0.0482]
[1726541091748,0.085947,58172.0,58171.0,0.0492]
[1726541093260,0.0054,58152.0,58149.0,0.13694793]
[1726541093459,0.5158,58171.0,58127.0,0.0087]
[1726541093460,0.085998,58138.0,58127.0,0.0087]
[1726541093660,0.3612,58128.0,58127.0,0.0039]
[1726541093866,0.3608,58141.0,58127.0,0.0039]
[1726541094059,0.10297256,58143.0,58127.0,0.0039]
[1726541094060,0.44936328,58148.0,58140.0,0.1304]
[1726541094253,0.44936328,58148.0,58147.0,0.0004]
[1726541094254,0.44336328,58148.0,58147.0,0.0004]
[1726541094455,0.35738028,58148.0,58147.0,0.0004]
[1726541094652,0.35738028,58148.0,58144.0,0.18116062]
[1726541094856,0.0004,58145.0,58144.0,0.18116062]
[1726541095068,0.0004,58145.0,58144.0,0.13]
[1726541095956,0.0004,58145.0,58142.0,0.05116062]
[1726541096161,0.0004,58143.0,58141.0,0.05116062]
[1726541096358,0.0004,58143.0,58140.0,0.0004]
[1726541096359,0.0004,58143.0,58140.0,0.05156062]
[1726541096569,0.0004,58141.0,58140.0,0.05156062]
[1726541096762,0.0004,58143.0,58140.0,0.05156062]
[1726541096965,0.0004,58143.0,58142.0,0.0004]
[1726541097564,0.0084,58143.0,58142.0,0.0004]
[1726541098460,0.0084,58143.0,58142.0,0.2004]
[1726541098659,0.0164,58143.0,58142.0,0.2004]
[1726541099273,0.0194,58143.0,58142.0,0.2014]
[1726541099667,0.0194,58143.0,58142.0,0.0014]
[1726541099863,0.0214,58143.0,58142.0,0.0014]
[1726541100373,0.0254,58143.0,58142.0,0.0024]
[1726541100966,0.11239,58143.0,58142.0,0.0024]
[1726541101763,0.11239,58143.0,58142.0,0.2024]
[1726541102068,0.11239,58143.0,58142.0,0.2014]
[1726541102069,0.10039,58143.0,58142.0,0.2014]
[1726541102253,0.11439,58143.0,58142.0,0.2024]
[1726541102459,0.11439,58143.0,58142.0,0.2014]
[1726541102460,0.0144,58143.0,58142.0,0.2014]
[1726541102761,0.0274,58143.0,58142.0,0.2024]
[1726541103158,0.0284,58143.0,58142.0,0.2024]
[1726541103369,0.11439,58143.0,58142.0,0.0024]
[1726541104570,0.11439,58143.0,58142.0,0.0014]
[1726541104571,0.10039,58143.0,58142.0,0.0014]
[1726541104770,0.11439,58143.0,58142.0,0.0024]
[1726541106960,0.10039,58143.0,58142.0,0.0014]
[1726541107166,0.11439,58143.0,58142.0,0.0024]
[1726541108575,0.11439,58143.0,58142.0,0.2024]
[1726541111376,0.11439,58143.0,58142.0,0.0024]
[1726541113881,0.11439,58143.0,58142.0,0.088392]
[1726541114869,0.0284,58143.0,58142.0,0.288392]
[1726541115571,0.0004,58150.0,58142.0,0.2024]
[1726541115872,0.004,58159.0,58158.0,0.085968]
[1726541116075,0.00257946,58164.0,58161.0,0.085962]
[1726541116271,0.00257946,58164.0,58163.0,0.0004]
[1726541116464,0.00257946,58164.0,58161.0,0.085962]
[1726541116972,0.00257946,58164.0,58163.0,0.5608]
[1726541117170,0.00257946,58164.0,58163.0,0.646761]
[1726541117568,0.00857946,58164.0,58163.0,0.69768841]
[1726541117774,0.00857946,58164.0,58163.0,0.646761]
[1726541118974,0.00957946,58164.0,58163.0,0.646761]
[1726541119383,0.00257946,58164.0,58163.0,0.646761]
[1726541119576,0.00257946,58164.0,58163.0,0.647761]
[1726541119779,0.00257891,58175.0,58170.0,0.08595]
[1726541120087,0.00957909,58181.0,58174.0,0.0004]
[1726541120285,0.085928,58185.0,58180.0,0.0004]
[1726541120490,0.085928,58185.0,58181.0,0.0004]
[1726541120972,0.09547145,58185.0,58181.0,0.0004]
[1726541121173,0.085928,58185.0,58181.0,0.0004]
[1726541122275,0.00257802,58188.0,58181.0,0.0004]
[1726541122884,0.1561965,58187.0,58180.0,0.03913067]
[1726541123085,0.34497954,58186.0,58184.0,0.085928]
[1726541123280,0.1561965,58185.0,58184.0,0.085928]
[1726541123583,0.08594,58177.0,58176.0,0.004]
[1726541123781,0.085963,58161.0,58160.0,0.00657897]
[1726541123982,0.28489093,58161.0,58160.0,0.00257897]
[1726541124288,0.2421595,58161.0,58160.0,0.00257897]
[1726541125085,0.2481595,58161.0,58160.0,0.00357897]
[1726541125477,0.30756918,58161.0,58160.0,0.00357897]
[1726541125682,0.2481595,58161.0,58160.0,0.00357897]
[1726541125883,0.1621965,58161.0,58160.0,0.00357897]
[1726541126080,0.1621965,58161.0,58160.0,0.08954397]
[1726541126601,0.09690908,58161.0,58160.0,0.28854397]
[1726541126775,0.29377528,58161.0,58160.0,0.29054397]
[1726541127073,0.29377023,58161.0,58160.0,0.29054397]
[1726541127274,0.10390908,58161.0,58160.0,0.28954397]
[1726541127482,0.29576339,58161.0,58160.0,0.29054397]
[1726541127790,0.35505081,58161.0,58160.0,0.29054397]
[1726541127999,0.1671965,58161.0,58160.0,0.29054397]
[1726541128389,0.24371037,58161.0,58160.0,0.47439553]
[1726541128583,0.11135292,58161.0,58160.0,0.47439553]
[1726541128784,0.00257933,58164.0,58160.0,0.47439553]
[1726541128785,0.00257933,58164.0,58163.0,0.085961]
[1726541128981,0.10545155,58164.0,58163.0,0.447161]
[1726541129688,0.1562735,58164.0,58163.0,1.15040008]
[1726541129891,0.002,58164.0,58163.0,1.06543908]
[1726541130087,0.009,58164.0,58163.0,1.11732946]
[1726541130588,0.0025788,58171.0,58163.0,1.11732946]
[1726541130788,0.0025788,58171.0,58170.0,0.2004]
[1726541131683,0.0004,58177.0,58170.0,0.2004]
[1726541131981,0.0004,58177.0,58176.0,0.286341]
[1726541132188,0.3608,58185.0,58184.0,0.085929]
[1726541132382,0.3608,58185.0,58184.0,0.286329]
[1726541133584,0.3608,58185.0,58184.0,0.287329]
[1726541133784,0.3608,58185.0,58184.0,0.087329]
[1726541133984,0.3608,58185.0,58184.0,0.088329]
[1726541134690,0.3608,58185.0,58184.0,0.0024]